fUSD/lending_fUSD_20240518
["ID","MTS","AMOUNT","RATE_DAILY","PERIOD"]
[327397105,1716041444408,-898.61,0.00027944,2]
[327397107,1716041444417,-844.04,0.00027944,2]
[327397109,1716041444427,-500.0,0.00027944,2]
[327397111,1716041444437,-500.0,0.00027944,2]
[327397113,1716041444447,-984.26,0.00027944,2]
[327397115,1716041444457,-413.78025342,0.00027944,2]
[327397117,1716041444466,-1127.28,0.00027944,2]
[327397120,1716041444479,-559.43,0.00027944,2]
[327397122,1716041444489,-997.87,0.00027944,2]
[327397124,1716041444499,-575.21,0.00027944,2]
[327397126,1716041444510,-500.0,0.00027944,2]
[327397128,1716041444521,-500.0,0.00027944,2]
[327397130,1716041444531,-500.0,0.00027944,2]
[327397132,1716041444542,-500.0,0.00027944,2]
[327397134,1716041444552,-583.84,0.00027944,2]
[327397136,1716041444562,-1919.96,0.00027944,2]
[327397138,1716041444573,-1477.41,0.00027944,2]
[327397140,1716041444584,-500.0,0.00027944,2]
[327397142,1716041444594,-500.0,0.00027944,2]
[327397145,1716041444605,-500.0,0.00027944,2]
[327397166,1716041444824,-500.0,0.00027944,2]
[327397167,1716041444840,-852.06,0.00027944,2]
[327397169,1716041444850,-702.19,0.00027944,2]
[327397171,1716041444860,-500.0,0.00027944,2]
[327397173,1716041444869,-555.41,0.00027944,2]
[327397174,1716041444879,-1908.21,0.00027944,2]
[327397176,1716041444888,-500.0,0.00027944,2]
[327397178,1716041444897,-500.0,0.00027944,2]
[327397179,1716041444907,-500.0,0.00027944,2]
[327397181,1716041444916,-500.0,0.00027944,2]
[327397183,1716041444925,-500.0,0.00027944,2]
[327397185,1716041444935,-534.5,0.00027944,2]
[327397186,1716041444944,-500.0,0.00027944,2]
[327397188,1716041444954,-667.95,0.00027944,2]
[327397190,1716041444963,-500.0,0.00027944,2]
[327397192,1716041444973,-500.0,0.00027944,2]
[327397193,1716041444982,-774.25,0.00027944,2]
[327397195,1716041444992,-500.0,0.00027944,2]
[327397197,1716041445001,-870.53,0.00027944,2]
[327397198,1716041445011,-500.0,0.00027944,2]
[327397200,1716041445020,-559.08,0.00027944,2]
[327397202,1716041445030,-520.02,0.00027944,2]
[327397204,1716041445040,-500.0,0.00027944,2]
[327397206,1716041445049,-500.0,0.00027944,2]
[327397207,1716041445058,-4108.19,0.00027944,2]
[327397208,1716041445067,-501.95,0.00027944,2]
[327397210,1716041445076,-500.0,0.00027944,2]
[327397212,1716041445086,-500.0,0.00027944,2]
[327397214,1716041445095,-501.41612825,0.00027945,2]
[327397216,1716041445104,-500.0,0.00027945,2]
[327397217,1716041445114,-500.0,0.00027945,2]
[327397219,1716041445123,-500.0,0.00027945,2]
[327397221,1716041445134,-500.0,0.00027945,2]
[327397223,1716041445144,-500.0,0.00027945,2]
[327397225,1716041445153,-500.72,0.00027945,2]
[327397226,1716041445162,-500.0,0.00027945,2]
[327397228,1716041445172,-500.0,0.00027945,2]
[327397230,1716041445182,-500.0,0.00027945,2]
[327397232,1716041445192,-500.0,0.00027945,2]
[327397234,1716041445201,-276.71759157,0.00027945,2]
[327397235,1716041445210,-500.0,0.00027945,2]
[327397237,1716041445220,-500.0,0.00027945,2]
[327397239,1716041445229,-500.0,0.00027945,2]
[327397241,1716041445238,-500.0,0.00027945,2]
[327397242,1716041445248,-760.4,0.00027945,2]
[327397244,1716041445257,-755.68,0.00027945,2]
[327397246,1716041445267,-589.0832249,0.00027945,2]
[327397248,1716041445277,-500.0,0.00027945,2]
[327397249,1716041445287,-956.49,0.00027945,2]
[327397251,1716041445297,-500.0,0.00027945,2]
[327397253,1716041445308,-500.0,0.00027945,2]
[327397255,1716041445319,-500.0,0.00027945,2]
[327397257,1716041445328,-266.92923709,0.00027945,2]
[327397258,1716041445338,-973.26,0.00027945,2]
[327397260,1716041445347,-500.0,0.00027945,2]
[327397262,1716041445357,-500.0,0.00027945,2]
[327397264,1716041445367,-500.0,0.00027945,2]
[327397266,1716041445377,-3791.0,0.000282,2]
[327397267,1716041445389,-274.90130937,0.00028218,2]
[327397269,1716041445398,-500.0,0.00028218,2]
[327397271,1716041445408,-500.0,0.00028218,2]
[327397272,1716041445418,-500.0,0.00028218,2]
[327397273,1716041445427,-500.0,0.00028218,2]
[327397274,1716041445437,-500.0,0.00028218,2]
[327397275,1716041445447,-500.0,0.00028218,2]
[327397276,1716041445456,-713.42,0.00028218,2]
[327397277,1716041445467,-500.0,0.00028218,2]
[327397278,1716041445477,-500.0,0.00028218,2]
[327397279,1716041445487,-396.152132,0.00028218,2]
[327397280,1716041445496,-507.48,0.00028218,2]
[327397281,1716041445506,-500.0,0.00028218,2]
[327397282,1716041445515,-642.82,0.00028218,2]
[327397283,1716041445526,-584.72,0.00028218,2]
[327397284,1716041445535,-500.0,0.00028218,2]
[327397285,1716041445545,-500.0,0.00028218,2]
[327397286,1716041445555,-732.2,0.00028218,2]
[327397287,1716041445564,-562.32,0.00028218,2]
[327397288,1716041445573,-682.41,0.00028218,2]
[327397289,1716041445583,-863.04,0.00028218,2]
[327397290,1716041445592,-500.0,0.00028218,2]
[327397291,1716041445602,-500.0,0.00028218,2]
[327397292,1716041445612,-500.0,0.00028218,2]
[327397293,1716041445621,-609.24,0.00028218,2]
[327397294,1716041445630,-500.0,0.00028218,2]
[327397295,1716041445640,-150.0,0.00028218,2]
[327397296,1716041445649,-500.0,0.00028218,2]
[327397297,1716041445658,-1007.03,0.00028218,2]
[327397298,1716041445667,-544.17295755,0.00028218,2]
[327397299,1716041445677,-500.0,0.00028218,2]
[327397300,1716041445687,-3346.88,0.00028218,2]
[327397301,1716041445696,-879.97,0.00028218,2]
[327397302,1716041445706,-500.0,0.00028218,2]
[327397303,1716041445716,-500.0,0.00028218,2]
[327397304,1716041445725,-500.0,0.00028218,2]
[327397305,1716041445735,-500.0,0.00028218,2]
[327397306,1716041445744,-500.0,0.00028218,2]
[327397308,1716041445754,-189.19186083,0.00028218,2]
[327397310,1716041445764,-500.0,0.00028218,2]
[327397312,1716041445775,-596.04,0.00028218,2]
[327397314,1716041445785,-500.0,0.00028218,2]
[327397316,1716041445794,-245.39983041,0.00028218,2]
[327397318,1716041445804,-500.0,0.00028218,2]
[327397320,1716041445813,-500.0,0.00028218,2]
[327397322,1716041445824,-500.0,0.00028218,2]
[327397324,1716041445833,-3478.51,0.00028218,2]
[327397326,1716041445842,-500.0,0.00028218,2]
[327397328,1716041445852,-500.0,0.00028218,2]
[327397330,1716041445862,-500.0,0.00028218,2]
[327397332,1716041445872,-500.0,0.00028218,2]
[327397334,1716041445881,-500.0,0.00028218,2]
[327397336,1716041445891,-500.0,0.00028218,2]
[327397338,1716041445900,-500.0,0.00028218,2]
[327397340,1716041445909,-500.0,0.00028218,2]
[327397342,1716041445919,-500.0,0.00028218,2]
[327397344,1716041445928,-500.0,0.00028218,2]
[327397346,1716041445939,-500.0,0.00028218,2]
[327397348,1716041445949,-1148.85,0.00028218,2]
[327397350,1716041445958,-500.0,0.00028218,2]
[327397352,1716041445967,-500.0,0.00028218,2]
[327397354,1716041445977,-500.0,0.00028218,2]
[327397356,1716041445986,-1003.53,0.00028218,2]
[327397358,1716041445996,-500.0,0.00028218,2]
[327397360,1716041446005,-500.0,0.00028218,2]
[327397362,1716041446015,-500.0,0.00028218,2]
[327397364,1716041446026,-500.0,0.00028218,2]
[327397366,1716041446035,-500.0,0.00028218,2]
[327397368,1716041446045,-500.0,0.00028218,2]
[327397370,1716041446055,-500.0,0.00028218,2]
[327397373,1716041446065,-500.0,0.00028218,2]
[327397377,1716041446074,-500.0,0.00028218,2]
[327397379,1716041446083,-500.0,0.00028218,2]
[327397382,1716041446093,-500.0,0.00028218,2]
[327397385,1716041446103,-500.0,0.00028218,2]
[327397388,1716041446112,-500.0,0.00028218,2]
[327397391,1716041446121,-500.0,0.00028218,2]
[327397393,1716041446130,-556.39,0.00028218,2]
[327397396,1716041446140,-500.0,0.00028218,2]
[327397400,1716041446150,-553.97,0.00028218,2]
[327397403,1716041446159,-500.0,0.00028218,2]
[327397406,1716041446168,-500.0,0.00028218,2]
[327397409,1716041446178,-500.0,0.00028218,2]
[327397411,1716041446187,-514.32,0.00028218,2]
[327397414,1716041446196,-1667.33,0.00028218,2]
[327397418,1716041446206,-702.72,0.00028218,2]
[327397423,1716041446215,-903.0,0.00028218,2]
[327397426,1716041446225,-500.0,0.00028218,2]
[327397430,1716041446236,-500.0,0.00028218,2]
[327397433,1716041446246,-570.97,0.00028218,2]
[327397436,1716041446255,-500.0,0.00028218,2]
[327397439,1716041446265,-1896.07,0.00028218,2]
[327397442,1716041446276,-369.01754522,0.00028218,2]
[327397445,1716041446286,-500.0,0.00028218,2]
[327397448,1716041446300,-500.0,0.00028218,2]
[327397450,1716041446309,-500.0,0.00028218,2]
[327397452,1716041446319,-500.0,0.00028218,2]
[327397454,1716041446328,-759.72,0.00028218,2]
[327397456,1716041446338,-500.0,0.00028218,2]
[327397458,1716041446348,-1078.32,0.00028218,2]
[327397460,1716041446358,-500.0,0.00028218,2]
[327397462,1716041446368,-500.0,0.00028218,2]
[327397464,1716041446379,-959.4,0.00028218,2]
[327397467,1716041446388,-500.0,0.00028218,2]
[327397469,1716041446398,-772.34,0.00028218,2]
[327397471,1716041446408,-500.0,0.00028218,2]
[327397472,1716041446416,-500.0,0.00028218,2]
[327397475,1716041446427,-500.0,0.00028218,2]
[327397477,1716041446436,-500.0,0.00028218,2]
[327397479,1716041446446,-1076.15,0.00028218,2]
[327397481,1716041446455,-500.0,0.00028218,2]
[327397483,1716041446465,-500.0,0.00028218,2]
[327397485,1716041446474,-500.0,0.00028218,2]
[327397487,1716041446484,-500.0,0.00028218,2]
[327397489,1716041446492,-1545.2,0.00028218,2]
[327397491,1716041446502,-500.0,0.00028218,2]
[327397493,1716041446511,-500.0,0.00028218,2]
[327397495,1716041446521,-500.0,0.00028218,2]
[327397497,1716041446530,-500.0,0.00028218,2]
[327397499,1716041446539,-500.0,0.00028218,2]
[327397501,1716041446549,-1066.88,0.00028218,2]
[327397503,1716041446559,-2799.24,0.00028218,2]
[327397504,1716041446568,-1604.45,0.00028218,2]
[327397507,1716041446578,-1043.2,0.00028218,2]
[327397508,1716041446587,-500.0,0.00028218,2]
[327397510,1716041446596,-500.0,0.00028218,2]
[327397513,1716041446606,-664.59,0.00028218,2]
[327397515,1716041446615,-500.0,0.00028218,2]
[327397517,1716041446625,-500.0,0.00028218,2]
[327397518,1716041446634,-500.0,0.00028218,2]
[327397520,1716041446644,-7133.02,0.00028218,2]
[327397523,1716041446654,-500.0,0.00028218,2]
[327397524,1716041446663,-500.0,0.00028218,2]
[327397527,1716041446673,-665.85,0.00028218,2]
[327397529,1716041446682,-500.0,0.00028218,2]
[327397530,1716041446691,-898.61,0.00028218,2]
[327397533,1716041446701,-844.04,0.00028218,2]
[327397534,1716041446710,-500.0,0.00028218,2]
[327397537,1716041446720,-500.0,0.00028218,2]
[327397538,1716041446729,-984.26,0.00028218,2]
[327397540,1716041446738,-1127.28,0.00028218,2]
[327397542,1716041446748,-559.43,0.00028218,2]
[327397545,1716041446758,-997.87,0.00028218,2]
[327397547,1716041446767,-575.21,0.00028218,2]
[327397549,1716041446779,-500.0,0.00028218,2]
[327397551,1716041446788,-500.0,0.00028218,2]
[327397552,1716041446797,-266.99799551,0.00028218,2]
[327397569,1716041447030,-233.00200449,0.00028218,2]
[327397570,1716041447040,-500.0,0.00028218,2]
[327397571,1716041447050,-583.84,0.00028218,2]
[327397572,1716041447064,-1919.96,0.00028218,2]
[327397573,1716041447076,-1423.20191717,0.00028218,2]
[327397576,1716041447091,-54.20808283,0.00028218,2]
[327397578,1716041447104,-500.0,0.00028218,2]
[327397580,1716041447116,-104.68893288,0.00028218,2]
[327397592,1716041447269,-395.31106712,0.00028218,2]
[327397593,1716041447282,-500.0,0.00028218,2]
[327397594,1716041447293,-406.07,0.00028218,2]
[327397595,1716041447309,-852.06,0.00028218,2]
[327397596,1716041447320,-702.19,0.00028218,2]
[327397597,1716041447333,-506.44846413,0.00028218,2]
[327397598,1716041447347,-555.41,0.00028218,2]
[327397599,1716041447359,-328.89497669,0.00028218,2]
[327397600,1716041447419,-1327.88316756,0.00028218,2]
[327397601,1716041447461,-251.43185575,0.00028218,2]
[327397602,1716041447472,-500.0,0.00028218,2]
[327397603,1716041447483,-500.0,0.00028218,2]
[327397604,1716041447494,-500.0,0.00028218,2]
[327397605,1716041447504,-500.0,0.00028218,2]
[327397606,1716041447515,-500.0,0.00028218,2]
[327397607,1716041447526,-534.5,0.00028218,2]
[327397608,1716041447537,-500.0,0.00028218,2]
[327397609,1716041447548,-667.95,0.00028218,2]
[327397610,1716041447560,-304.01464725,0.00028218,2]
[327397612,1716041447571,-500.0,0.00028218,2]
[327397614,1716041447582,-774.25,0.00028218,2]
[327397617,1716041447594,-500.0,0.00028218,2]
[327397619,1716041447605,-870.53,0.00028218,2]
[327397621,1716041447617,-500.0,0.00028218,2]
[327397623,1716041447629,-559.08,0.00028218,2]
[327397626,1716041447640,-520.02,0.00028218,2]
[327397628,1716041447652,-500.0,0.00028218,2]
[327397630,1716041447664,-500.0,0.00028218,2]
[327397632,1716041447675,-4108.19,0.00028218,2]
[327397634,1716041447686,-501.95,0.00028218,2]
[327397636,1716041447696,-500.0,0.00028218,2]
[327397638,1716041447706,-500.0,0.00028218,2]
[327397639,1716041447716,-500.0,0.00028219,2]
[327397640,1716041447727,-500.0,0.00028219,2]
[327397641,1716041447736,-500.0,0.00028219,2]
[327397642,1716041447747,-219.0,0.00028219,2]
[327397643,1716041447758,-500.0,0.00028219,2]
[327397644,1716041447769,-500.72,0.00028219,2]
[327397645,1716041447782,-500.0,0.00028219,2]
[327397646,1716041447792,-500.0,0.00028219,2]
[327397648,1716041447805,-500.0,0.00028219,2]
[327397650,1716041447815,-500.0,0.00028219,2]
[327397652,1716041447825,-500.0,0.00028219,2]
[327397654,1716041447835,-500.0,0.00028219,2]
[327397656,1716041447846,-500.0,0.00028219,2]
[327397658,1716041447857,-500.0,0.00028219,2]
[327397660,1716041447868,-760.4,0.00028219,2]
[327397663,1716041447878,-755.68,0.00028219,2]
[327397665,1716041447890,-500.0,0.00028219,2]
[327397667,1716041447901,-956.49,0.00028219,2]
[327397669,1716041447911,-500.0,0.00028219,2]
[327397671,1716041447921,-500.0,0.00028219,2]
[327397673,1716041447931,-500.0,0.00028219,2]
[327397675,1716041447942,-973.26,0.00028219,2]
[327397678,1716041447952,-500.0,0.00028219,2]
[327397680,1716041447962,-500.0,0.00028219,2]
[327397682,1716041447972,-500.0,0.00028219,2]
[327397684,1716041447982,-253.44752863,0.00028491,2]
[327397686,1716041447994,-500.0,0.00028492,2]
[327397688,1716041448005,-500.0,0.00028492,2]
[327397690,1716041448016,-500.0,0.00028492,2]
[327397692,1716041448025,-643.2337943,0.00028492,2]
[327397694,1716041448036,-500.0,0.00028492,2]
[327397696,1716041448046,-500.0,0.00028492,2]
[327397699,1716041448057,-713.42,0.00028492,2]
[327397701,1716041448068,-500.0,0.00028492,2]
[327397703,1716041448078,-500.0,0.00028492,2]
[327397705,1716041448089,-507.48,0.00028492,2]
[327397707,1716041448100,-500.0,0.00028492,2]
[327397709,1716041448111,-642.82,0.00028492,2]
[327397711,1716041448122,-584.72,0.00028492,2]
[327397713,1716041448133,-500.0,0.00028492,2]
[327397715,1716041448143,-500.0,0.00028492,2]
[327397717,1716041448153,-732.2,0.00028492,2]
[327397719,1716041448163,-562.32,0.00028492,2]
[327397722,1716041448173,-682.41,0.00028492,2]
[327397724,1716041448183,-863.04,0.00028492,2]
[327397726,1716041448194,-330.68439139,0.00028492,2]
[327397728,1716041448204,-500.0,0.00028492,2]
[327397730,1716041448215,-500.0,0.00028492,2]
[327397732,1716041448225,-609.24,0.00028492,2]
[327397734,1716041448236,-500.0,0.00028492,2]
[327397736,1716041448247,-150.0,0.00028492,2]
[327397739,1716041448257,-500.0,0.00028492,2]
[327397741,1716041448267,-1007.03,0.00028492,2]
[327397743,1716041448278,-3346.88,0.00028492,2]
[327397745,1716041448288,-879.97,0.00028492,2]
[327397747,1716041448302,-500.0,0.00028492,2]
[327397749,1716041448312,-551.25465944,0.00028492,2]
[327397751,1716041448322,-500.0,0.00028492,2]
[327397753,1716041448332,-500.0,0.00028492,2]
[327397755,1716041448343,-500.0,0.00028492,2]
[327397757,1716041448353,-500.0,0.00028492,2]
[327397759,1716041448363,-596.04,0.00028492,2]
[327397761,1716041448376,-500.0,0.00028492,2]
[327397763,1716041448386,-500.0,0.00028492,2]
[327397765,1716041448397,-500.0,0.00028492,2]
[327397767,1716041448406,-500.0,0.00028492,2]
[327397770,1716041448417,-3478.51,0.00028492,2]
[327397772,1716041448427,-500.0,0.00028492,2]
[327397774,1716041448437,-500.0,0.00028492,2]
[327397776,1716041448448,-500.0,0.00028492,2]
[327397778,1716041448458,-500.0,0.00028492,2]
[327397780,1716041448468,-500.0,0.00028492,2]
[327397782,1716041448478,-500.0,0.00028492,2]
[327397784,1716041448488,-500.0,0.00028492,2]
[327397786,1716041448498,-500.0,0.00028492,2]
[327397788,1716041448508,-500.0,0.00028492,2]
[327397790,1716041448518,-500.0,0.00028492,2]
[327397793,1716041448529,-1148.85,0.00028492,2]
[327397795,1716041448539,-500.0,0.00028492,2]
[327397797,1716041448548,-500.0,0.00028492,2]
[327397799,1716041448558,-500.0,0.00028492,2]
[327397801,1716041448569,-1003.53,0.00028492,2]
[327397803,1716041448579,-500.0,0.00028492,2]
[327397805,1716041448589,-500.0,0.00028492,2]
[327397807,1716041448599,-500.0,0.00028492,2]
[327397809,1716041448609,-500.0,0.00028492,2]
[327397811,1716041448619,-500.0,0.00028492,2]
[327397813,1716041448629,-500.0,0.00028492,2]
[327397816,1716041448639,-500.0,0.00028492,2]
[327397818,1716041448649,-500.0,0.00028492,2]
[327397820,1716041448659,-500.0,0.00028492,2]
[327397822,1716041448670,-500.0,0.00028492,2]
[327397824,1716041448679,-500.0,0.00028492,2]
[327397826,1716041448689,-500.0,0.00028492,2]
[327397828,1716041448699,-500.0,0.00028492,2]
[327397830,1716041448710,-500.0,0.00028492,2]
[327397833,1716041448720,-556.39,0.00028492,2]
[327397835,1716041448730,-500.0,0.00028492,2]
[327397837,1716041448740,-553.97,0.00028492,2]
[327397839,1716041448750,-500.0,0.00028492,2]
[327397841,1716041448760,-500.0,0.00028492,2]
[327397843,1716041448771,-500.0,0.00028492,2]
[327397845,1716041448782,-514.32,0.00028492,2]
[327397847,1716041448793,-1667.33,0.00028492,2]
[327397849,1716041448803,-702.72,0.00028492,2]
[327397851,1716041448813,-903.0,0.00028492,2]
[327397854,1716041448824,-500.0,0.00028492,2]
[327397856,1716041448834,-500.0,0.00028492,2]
[327397858,1716041448844,-570.97,0.00028492,2]
[327397860,1716041448854,-500.0,0.00028492,2]
[327397862,1716041448864,-1896.07,0.00028492,2]
[327397864,1716041448874,-500.0,0.00028492,2]
[327397866,1716041448885,-500.0,0.00028492,2]
[327397868,1716041448895,-500.0,0.00028492,2]
[327397870,1716041448905,-500.0,0.00028492,2]
[327397872,1716041448915,-759.72,0.00028492,2]
[327397875,1716041448926,-500.0,0.00028492,2]
[327397877,1716041448936,-1078.32,0.00028492,2]
[327397879,1716041448946,-500.0,0.00028492,2]
[327397881,1716041448956,-500.0,0.00028492,2]
[327397883,1716041448966,-959.4,0.00028492,2]
[327397885,1716041448976,-500.0,0.00028492,2]
[327397887,1716041448986,-772.34,0.00028492,2]
[327397889,1716041448996,-500.0,0.00028492,2]
[327397891,1716041449006,-500.0,0.00028492,2]
[327397893,1716041449016,-500.0,0.00028492,2]
[327397895,1716041449026,-500.0,0.00028492,2]
[327397897,1716041449036,-1076.15,0.00028492,2]
[327397899,1716041449047,-500.0,0.00028492,2]
[327397902,1716041449057,-500.0,0.00028492,2]
[327397904,1716041449068,-500.0,0.00028492,2]
[327397906,1716041449078,-500.0,0.00028492,2]
[327397908,1716041449088,-1545.2,0.00028492,2]
[327397910,1716041449098,-500.0,0.00028492,2]
[327397912,1716041449109,-500.0,0.00028492,2]
[327397914,1716041449119,-169.32423427,0.00028492,2]
[327397930,1716041449259,-586.84,0.0002767,2]
[327397932,1716041449269,-330.67576573,0.00028492,2]
[327397934,1716041449278,-331.08479774,0.00028492,2]
[327397936,1716041449290,-168.91520226,0.00028492,2]
[327397938,1716041449303,-202.04916505,0.00028492,2]
[327397941,1716041449318,-297.95083495,0.00028492,2]
[327397943,1716041449328,-182.08972433,0.00028492,2]
[327397945,1716041449340,-884.79027567,0.00028492,2]
[327397947,1716041449349,-2799.24,0.00028492,2]
[327397949,1716041449358,-1604.45,0.00028492,2]
[327397951,1716041449367,-1043.2,0.00028492,2]
[327397953,1716041449377,-500.0,0.00028492,2]
[327397955,1716041449387,-500.0,0.00028492,2]
[327397957,1716041449397,-664.59,0.00028492,2]
[327397959,1716041449407,-500.0,0.00028492,2]
[327397961,1716041449417,-500.0,0.00028492,2]
[327397963,1716041449426,-500.0,0.00028492,2]
[327397965,1716041449435,-2003.31936589,0.00028492,2]
[327397967,1716041449446,-762.5,0.00028492,2]
[327397970,1716041449462,-4367.20063411,0.00028492,2]
[327397972,1716041449471,-500.0,0.00028492,2]
[327397974,1716041449481,-500.0,0.00028492,2]
[327397976,1716041449490,-665.85,0.00028492,2]
[327397978,1716041449500,-500.0,0.00028492,2]
[327397980,1716041449510,-844.04,0.00028492,2]
[327397982,1716041449519,-898.61,0.00028492,2]
[327397984,1716041449529,-500.0,0.00028492,2]
[327397986,1716041449539,-500.0,0.00028492,2]
[327397988,1716041449549,-984.26,0.00028492,2]
[327397990,1716041449558,-1127.28,0.00028492,2]
[327397992,1716041449567,-559.43,0.00028492,2]
[327397994,1716041449576,-997.87,0.00028492,2]
[327397996,1716041449585,-575.21,0.00028492,2]
[327397998,1716041449594,-500.0,0.00028492,2]
[327398000,1716041449603,-500.0,0.00028492,2]
[327398002,1716041449613,-500.0,0.00028492,2]
[327398031,1716041449943,-500.0,0.00028492,2]
[327398033,1716041449957,-583.84,0.00028492,2]
[327398035,1716041449967,-1919.96,0.00028492,2]
[327398037,1716041449976,-1477.41,0.00028492,2]
[327398039,1716041449986,-500.0,0.00028492,2]
[327398042,1716041449995,-500.0,0.00028492,2]
[327398044,1716041450005,-500.0,0.00028492,2]
[327398045,1716041450014,-852.06,0.00028492,2]
[327398047,1716041450025,-702.19,0.00028492,2]
[327398050,1716041450034,-555.41,0.00028492,2]
[327398052,1716041450043,-1908.21,0.00028492,2]
[327398054,1716041450052,-500.0,0.00028492,2]
[327398055,1716041450061,-500.0,0.00028492,2]
[327398058,1716041450070,-500.0,0.00028492,2]
[327398059,1716041450080,-500.0,0.00028492,2]
[327398061,1716041450089,-500.0,0.00028492,2]
[327398064,1716041450098,-534.5,0.00028492,2]
[327398066,1716041450107,-500.0,0.00028492,2]
[327398068,1716041450117,-667.95,0.00028492,2]
[327398069,1716041450126,-500.0,0.00028492,2]
[327398071,1716041450135,-774.25,0.00028492,2]
[327398073,1716041450145,-500.0,0.00028492,2]
[327398075,1716041450154,-870.53,0.00028492,2]
[327398077,1716041450163,-500.0,0.00028492,2]
[327398079,1716041450172,-559.08,0.00028492,2]
[327398081,1716041450181,-520.02,0.00028492,2]
[327398083,1716041450191,-500.0,0.00028492,2]
[327398085,1716041450200,-500.0,0.00028492,2]
[327398088,1716041450210,-4108.19,0.00028492,2]
[327398090,1716041450219,-501.95,0.00028492,2]
[327398091,1716041450228,-500.0,0.00028492,2]
[327398093,1716041450237,-500.0,0.00028492,2]
[327398096,1716041450247,-500.0,0.00028493,2]
[327398098,1716041450256,-500.0,0.00028493,2]
[327398099,1716041450265,-500.0,0.00028493,2]
[327398101,1716041450275,-500.0,0.00028493,2]
[327398104,1716041450284,-500.72,0.00028493,2]
[327398106,1716041450295,-500.0,0.00028493,2]
[327398107,1716041450308,-500.0,0.00028493,2]
[327398109,1716041450318,-500.0,0.00028493,2]
[327398111,1716041450327,-500.0,0.00028493,2]
[327398114,1716041450336,-446.15406054,0.00028493,2]
[327398116,1716041450347,-500.0,0.00028493,2]
[327398118,1716041450356,-500.0,0.00028493,2]
[327398119,1716041450365,-500.0,0.00028493,2]
[327398122,1716041450377,-760.4,0.00028493,2]
[327398124,1716041450385,-755.68,0.00028493,2]
[327398126,1716041450395,-500.0,0.00028493,2]
[327398128,1716041450403,-956.49,0.00028493,2]
[327398129,1716041450413,-500.0,0.00028493,2]
[327398132,1716041450422,-500.0,0.00028493,2]
[327398133,1716041450431,-500.0,0.00028493,2]
[327398135,1716041450441,-973.26,0.00028493,2]
[327398137,1716041450451,-500.0,0.00028493,2]
[327398140,1716041450462,-500.0,0.00028493,2]
[327398141,1716041450473,-273.79,0.00028493,2]
[327398143,1716041450483,-500.0,0.00028766,2]
[327398146,1716041450492,-500.0,0.00028766,2]
[327398147,1716041450501,-500.0,0.00028766,2]
[327398149,1716041450511,-622.62780119,0.00028766,2]
[327398152,1716041450520,-613.8705517,0.00028766,2]
[327398154,1716041450530,-713.42,0.00028766,2]
[327398156,1716041450539,-500.0,0.00028766,2]